bitfinex-derivatives/quotes_BTCF0:USTF0_20251111
["timestamp","ask_amount","ask_price","bid_price","bid_amount"]
[1762875905953,0.33050508,103610.0,103600.0,0.11487963]
[1762875905954,0.64050508,103610.0,103600.0,0.11487963]
[1762875906152,0.64050508,103610.0,103600.0,0.06683803]
[1762875906153,0.63550508,103610.0,103600.0,0.06683803]
[1762875906553,1.01086508,103610.0,103600.0,0.01019803]
[1762875907056,1.01086508,103610.0,103600.0,0.008]
[1762875907445,0.03984,103600.0,103590.0,0.00014454]
[1762875907651,0.63492802,103600.0,103590.0,0.00014454]
[1762875907846,0.03984,103580.0,103570.0,0.1086816]
[1762875908159,1.01024802,103580.0,103570.0,0.15540603]
[1762875908752,0.72516,103580.0,103570.0,0.15540603]
[1762875910156,0.34984,103580.0,103570.0,0.15540603]
[1762875910358,0.34984,103580.0,103570.0,0.20744763]
[1762875910558,0.33592,103580.0,103570.0,0.20844763]
[1762875910755,0.64092802,103580.0,103570.0,0.00319803]
[1762875911157,0.64092802,103580.0,103570.0,0.04672803]
[1762875911363,0.33592,103580.0,103570.0,0.14329603]
[1762875912456,0.35584,103580.0,103570.0,0.14329603]
[1762875913066,0.33592,103580.0,103570.0,0.14329603]
[1762875917265,0.316,103580.0,103570.0,0.19533763]
[1762875918268,0.00014454,103590.0,103580.0,0.1531987]
[1762875918570,0.32493921,103610.0,103600.0,0.1531801]
[1762875918872,0.65493921,103610.0,103600.0,0.05883803]
[1762875919368,0.65493921,103610.0,103600.0,0.00219803]
[1762875919765,0.03984,103600.0,103590.0,0.00014454]
[1762875920072,0.66393921,103600.0,103590.0,0.00234257]
[1762875920870,1.03913921,103600.0,103590.0,0.00234257]
[1762875922270,1.03913921,103600.0,103590.0,0.00114454]
[1762875923973,1.1843828,103600.0,103590.0,4.54e-06]
[1762875924168,0.03756,103580.0,103570.0,0.05591]
[1762875924363,1.01759921,103580.0,103570.0,0.00219803]
[1762875925470,0.70759921,103580.0,103570.0,0.00219803]
[1762875926069,0.71359921,103580.0,103570.0,0.00319803]
[1762875926374,0.70381921,103580.0,103570.0,0.05913803]
[1762875926964,0.70381921,103580.0,103570.0,0.03768803]
[1762875928172,0.70381921,103580.0,103570.0,0.05913803]
[1762875930273,0.85930883,103580.0,103570.0,0.00319803]
[1762875930571,0.85930883,103580.0,103550.0,0.01768283]
[1762875930572,0.03696,103560.0,103550.0,0.00454283]
[1762875930777,0.69937724,103560.0,103550.0,0.00454283]
[1762875931077,0.03116,103540.0,103530.0,0.09060198]
[1762875931272,0.31845724,103540.0,103530.0,0.05667267]
[1762875931478,0.31845724,103540.0,103530.0,1.55667267]
[1762875931677,0.69357724,103540.0,103530.0,1.51387267]
[1762875932285,0.69357724,103540.0,103530.0,1.50073267]
[1762875933276,0.79017324,103540.0,103530.0,1.50073267]
[1762875933475,0.79017324,103540.0,103530.0,1.50173267]
[1762875934272,0.79017324,103540.0,103530.0,0.00173267]
[1762875934666,0.79017324,103540.0,103530.0,0.001]
[1762875935073,0.50507403,103540.0,103530.0,0.00173267]
[1762875935282,0.79017324,103540.0,103530.0,0.00173267]
[1762875936471,0.79017324,103540.0,103530.0,0.001]
[1762875936972,0.69971707,103540.0,103530.0,0.001]
[1762875937178,0.69971707,103540.0,103530.0,0.00173267]
[1762875937680,0.50507403,103540.0,103530.0,0.00173267]
[1762875940177,0.00014454,103550.0,103540.0,0.152536]
[1762875940370,0.00014454,103550.0,103540.0,0.15326867]
[1762875941081,0.21256561,103550.0,103540.0,0.15326867]
[1762875941387,0.22814561,103550.0,103540.0,0.15326867]
[1762875942177,0.03450257,103550.0,103540.0,0.15826867]
[1762875942379,0.22914561,103550.0,103540.0,0.15826867]
[1762875942575,0.23014561,103550.0,103540.0,0.06667267]
[1762875942881,0.23014561,103550.0,103540.0,0.16326867]
[1762875943675,0.23014561,103550.0,103540.0,0.06667267]
[1762875944678,0.23014561,103550.0,103540.0,0.01073267]
[1762875944872,0.23014561,103550.0,103540.0,0.04522267]
[1762875945076,0.23014561,103550.0,103540.0,0.01073267]
[1762875945982,0.02116,103530.0,103520.0,1.50026952]
[1762875946182,0.02116,103530.0,103520.0,1.50100219]
[1762875946183,0.59304107,103530.0,103520.0,1.50100219]
[1762875946883,0.00219803,103530.0,103520.0,1.59761689]
[1762875947082,0.19984107,103530.0,103520.0,1.59761689]
[1762875947286,0.20264304,103530.0,103520.0,1.59861689]
[1762875947488,0.008,103530.0,103520.0,1.84009689]
[1762875947986,0.008,103530.0,103520.0,1.97365689]
[1762875948287,0.21042107,103530.0,103520.0,1.97365689]
[1762875948487,0.21600107,103530.0,103520.0,1.97365689]
[1762875948676,0.21042107,103530.0,103520.0,1.97365689]
[1762875949381,0.20484107,103530.0,103520.0,1.97365689]
[1762875949588,0.008,103530.0,103520.0,1.97365689]
[1762875949791,0.008,103530.0,103520.0,2.21513689]
[1762875950177,0.008,103530.0,103520.0,1.97365689]
[1762875950378,0.008,103530.0,103520.0,2.24979887]
[1762875950579,0.57836758,103550.0,103540.0,0.0577]
[1762875950779,0.59414561,103550.0,103540.0,0.15502867]
[1762875950980,0.21914561,103550.0,103540.0,0.15502867]
[1762875951184,0.19698561,103550.0,103540.0,0.15502867]
[1762875951387,0.19478758,103550.0,103540.0,0.15502867]
[1762875951588,0.19698561,103550.0,103540.0,0.15502867]
[1762875952184,0.19798561,103550.0,103540.0,0.16002867]
[1762875952986,0.19898561,103550.0,103540.0,0.16202867]
[1762875953486,0.00434257,103550.0,103540.0,0.16202867]
[1762875953687,0.02716,103590.0,103580.0,0.01306]
[1762875953897,0.22400107,103590.0,103580.0,0.03666267]
[1762875954096,0.36937082,103590.0,103580.0,0.00073267]
[1762875955583,0.36937082,103590.0,103580.0,0.00273267]
[1762875956589,0.36937082,103590.0,103580.0,0.00373267]
[1762875958790,0.22400107,103590.0,103580.0,0.06131267]
[1762875958989,0.22400107,103590.0,103580.0,0.01765267]
[1762875960191,0.22400107,103590.0,103580.0,0.06131267]
[1762875960697,0.2237898,103590.0,103580.0,0.06131267]
[1762875961990,0.2237898,103590.0,103580.0,0.15787137]
[1762875962193,0.02935803,103590.0,103580.0,0.15787137]
[1762875962497,0.2237898,103590.0,103580.0,0.06131267]
[1762875962699,0.2237898,103590.0,103580.0,0.15787137]
[1762875963493,0.00014454,103600.0,103590.0,0.1541294]
[1762875963689,0.00014454,103600.0,103590.0,0.15486207]
[1762875964196,0.19677434,103600.0,103590.0,0.15486207]
[1762875964390,0.00234257,103600.0,103590.0,0.15486207]
[1762875964698,0.22393434,103600.0,103590.0,0.15486207]
[1762875965597,0.00334257,103600.0,103590.0,0.15886207]
[1762875965897,0.01358,103610.0,103600.0,0.1541126]
[1762875966198,0.01358,103610.0,103600.0,0.15631063]
[1762875966591,0.02716,103630.0,103620.0,0.05758]
[1762875966792,0.02716,103630.0,103620.0,0.15629953]
[1762875966992,0.22159177,103630.0,103620.0,0.15629953]
[1762875967191,0.40202454,103640.0,103630.0,0.04366]
[1762875967397,0.40202454,103640.0,103630.0,0.04585803]
[1762875967398,0.59645631,103640.0,103630.0,0.04585803]
[1762875967990,0.79088808,103640.0,103630.0,0.02432803]
[1762875968191,0.79088808,103640.0,103630.0,0.00219803]
[1762875968593,0.79088808,103640.0,103630.0,0.02432803]
[1762875968797,0.79088808,103640.0,103630.0,0.04585803]
[1762875969003,0.59645631,103640.0,103630.0,0.04585803]
[1762875969596,0.2484,103660.0,103650.0,0.1401458]
[1762875969597,0.02716,103660.0,103650.0,0.1401458]
[1762875969799,0.22182326,103670.0,103660.0,0.05758]
[1762875970096,0.59646326,103670.0,103660.0,0.00219803]
[1762875970500,0.02716,103650.0,103640.0,0.05758]
[1762875970692,0.22159177,103650.0,103640.0,0.05977803]
[1762875970897,0.59619177,103650.0,103640.0,0.05977803]
[1762875971099,0.01688,103620.0,103610.0,0.03466198]
[1762875971295,0.01688,103600.0,103590.0,8.396e-05]
[1762875971498,0.01688,103570.0,103560.0,0.05758]
[1762875971803,0.21131177,103570.0,103560.0,0.05977803]
[1762875972394,0.21140579,103570.0,103560.0,0.05977803]
[1762875972904,0.21140579,103570.0,103560.0,0.06177803]
[1762875973302,0.21140579,103570.0,103560.0,0.15835543]
[1762875973507,0.21140579,103570.0,103560.0,0.06177803]
[1762875973700,0.21240579,103570.0,103560.0,0.06477803]
[1762875974007,0.21240579,103570.0,103560.0,0.16135543]
[1762875974008,0.52104579,103570.0,103560.0,0.16135543]
[1762875974306,0.19552579,103570.0,103560.0,0.16135543]
[1762875974694,0.19652579,103570.0,103560.0,0.06677803]
[1762875974897,0.21340579,103570.0,103560.0,0.06677803]
[1762875975702,0.40783756,103570.0,103560.0,0.00919803]
[1762875975901,0.40783756,103570.0,103560.0,0.007]
[1762875976203,0.02532,103560.0,103550.0,0.00014454]
[1762875976411,0.78884675,103560.0,103550.0,0.00014454]
[1762875976606,0.93406591,103560.0,103550.0,0.00014454]
[1762875977298,0.93406591,103560.0,103550.0,0.00234257]
[1762875977602,0.93506591,103560.0,103550.0,0.00234257]
[1762875978398,0.93606591,103560.0,103550.0,0.00234257]
[1762875978605,0.93606591,103560.0,103550.0,0.00014454]
[1762875979209,0.93606591,103560.0,103550.0,0.00234257]
[1762875979807,0.93606591,103560.0,103550.0,0.00014454]
[1762875980307,1.03264331,103560.0,103550.0,0.00014454]
[1762875980902,0.01688,103530.0,103520.0,1.51392]
[1762875981105,0.21141498,103530.0,103520.0,1.51611803]
[1762875981505,0.21141498,103530.0,103520.0,0.01611803]
[1762875981702,0.01688,103520.0,103510.0,0.00011014]
[1762875982013,0.58601498,103520.0,103510.0,0.04583817]
[1762875982809,0.58901498,103520.0,103510.0,0.04583817]
[1762875983020,0.68562968,103520.0,103510.0,0.00230817]
[1762875983302,0.88006145,103520.0,103500.0,0.00014454]
[1762875983509,0.21131177,103510.0,103500.0,0.00234257]
[1762875983706,0.21131177,103510.0,103480.0,0.05745]
[1762875983707,0.01688,103490.0,103480.0,0.05745]
[1762875983913,0.58591177,103490.0,103480.0,0.05964803]
[1762875984411,0.58603278,103490.0,103480.0,0.05964803]
[1762875985110,0.58607278,103490.0,103480.0,0.05964803]
[1762875985406,0.58807278,103490.0,103480.0,0.05964803]
[1762875985804,0.00612101,103490.0,103480.0,0.15630013]
[1762875986004,0.00612101,103490.0,103480.0,0.39790013]
[1762875986212,0.00612101,103490.0,103480.0,0.15630013]
[1762875986403,0.20055278,103490.0,103480.0,0.05964803]
[1762875986596,0.21743278,103490.0,103480.0,0.05964803]
[1762875986801,0.02300101,103490.0,103480.0,0.05964803]
[1762875987006,0.21843278,103490.0,103480.0,0.00219803]
[1762875987305,0.01688,103480.0,103470.0,1.50038614]
[1762875987509,0.01688,103480.0,103470.0,0.00038614]
[1762875987510,0.78892181,103480.0,103470.0,0.00038614]
[1762875987705,0.93293879,103480.0,103470.0,0.00038614]
[1762875987913,0.93293879,103480.0,103440.0,1.610549]
[1762875988114,0.93293879,103480.0,103450.0,0.04572803]
[1762875988115,0.01688,103460.0,103450.0,0.04572803]
[1762875988406,0.68274323,103460.0,103450.0,0.04572803]
[1762875988610,0.68274323,103460.0,103450.0,0.00219803]
[1762875989118,0.01688,103450.0,103440.0,9.638e-05]
[1762875989415,0.21131177,103450.0,103440.0,0.00229441]
[1762875989609,0.35570456,103450.0,103440.0,0.03724441]
[1762875989806,0.73042456,103450.0,103440.0,0.05968441]
[1762875990113,0.58611404,103450.0,103440.0,0.05968441]
[1762875990314,0.68279414,103450.0,103440.0,0.05968441]
[1762875990706,0.58611404,103450.0,103440.0,0.05968441]
[1762875991214,0.58615404,103450.0,103440.0,0.05968441]
[1762875991604,0.59115404,103450.0,103440.0,0.05968441]
[1762875992204,0.59315404,103450.0,103440.0,0.05968441]
[1762875992416,0.21839404,103450.0,103440.0,0.01615441]
[1762875992712,0.59319404,103450.0,103440.0,0.01615441]
[1762875993309,0.59319404,103450.0,103440.0,9.638e-05]
[1762875993515,0.59319404,103450.0,103440.0,0.00229441]
[1762875993516,0.68987414,103450.0,103440.0,0.00229441]
[1762875993705,0.68987414,103450.0,103440.0,9.638e-05]
[1762875994013,0.68987414,103450.0,103440.0,0.00229441]
[1762875995315,0.68987414,103450.0,103440.0,9.638e-05]
[1762875995706,0.68987414,103450.0,103440.0,0.00229441]
[1762875997716,0.68987414,103450.0,103440.0,0.05968441]
[1762875997717,0.31507414,103450.0,103440.0,0.05968441]
[1762875998017,0.68991414,103450.0,103440.0,0.05968441]
[1762875998513,0.68991414,103450.0,103440.0,0.01615441]
[1762875998813,0.39880227,103450.0,103440.0,0.05968441]
[1762875999017,0.7813518,103450.0,103440.0,0.05968441]
[1762875999715,0.6846717,103450.0,103440.0,0.15637381]
[1762875999918,0.6846717,103450.0,103440.0,0.01615441]
[1762876000510,0.6846717,103450.0,103440.0,0.05968441]
[1762876000917,0.6847117,103450.0,103440.0,0.05968441]
[1762876001319,0.6846717,103450.0,103440.0,0.05968441]
[1762876001516,0.7813918,103450.0,103440.0,0.05968441]
[1762876001722,0.39884227,103450.0,103440.0,0.15637381]
[1762876001915,0.6847117,103450.0,103440.0,0.15637381]
[1762876002220,0.6847117,103450.0,103440.0,0.05968441]
[1762876003010,0.3098317,103450.0,103440.0,0.15637381]
[1762876003213,0.36396227,103450.0,103440.0,0.15637381]
[1762876003414,1.1213918,103450.0,103440.0,0.05968441]
[1762876004524,0.7465118,103450.0,103440.0,0.05968441]
[1762876004817,0.36396227,103450.0,103440.0,0.05968441]
[1762876005016,0.34708227,103450.0,103440.0,0.15637381]
[1762876006516,0.36396227,103450.0,103440.0,0.15637381]
[1762876006912,0.46064237,103450.0,103440.0,0.15637381]
[1762876007122,0.7465118,103450.0,103440.0,0.05968441]
[1762876007325,0.7465118,103450.0,103440.0,0.11284381]
[1762876007519,0.7465118,103450.0,103440.0,0.01615441]
[1762876008429,0.01688,103420.0,103410.0,0.1402474]
[1762876008618,1.00758943,103420.0,103410.0,0.14244543]
[1762876009025,1.00758943,103420.0,103410.0,0.00219803]
[1762876009324,0.01688,103410.0,103400.0,0.03]
[1762876009519,0.01688,103400.0,103390.0,0.00024179]
[1762876009713,0.01688,103380.0,103370.0,1.5]
[1762876009917,0.97765808,103380.0,103370.0,1.50219803]
[1762876010113,0.60281808,103380.0,103370.0,1.50219803]
[1762876010325,0.60281808,103380.0,103370.0,1.59895293]
[1762876010526,0.97765808,103380.0,103370.0,1.59895293]
[1762876010735,0.58281808,103380.0,103370.0,1.59895293]
[1762876011022,6.865e-05,103380.0,103370.0,1.59895293]
[1762876011222,0.60281808,103380.0,103370.0,0.04536803]
[1762876011432,0.59737808,103380.0,103370.0,0.14212293]
[1762876011630,0.30506865,103380.0,103370.0,0.14212293]
[1762876011929,0.00014454,103390.0,103380.0,0.1534356]
[1762876012116,0.34234257,103390.0,103380.0,0.15416827]
[1762876012319,0.649872,103390.0,103380.0,0.05742267]
[1762876012522,0.649872,103390.0,103380.0,0.03592267]
[1762876013028,1.02530705,103390.0,103380.0,0.05742267]
[1762876013224,1.02534705,103390.0,103380.0,0.05742267]
[1762876013415,1.02534705,103390.0,103350.0,0.00033397]
[1762876013416,0.02166,103360.0,103350.0,0.00033397]
[1762876013622,0.00228001,103360.0,103350.0,0.14101024]
[1762876013826,8.198e-05,103360.0,103350.0,0.51697024]
[1762876014024,8.198e-05,103360.0,103350.0,0.75885024]
[1762876014330,0.00014454,103370.0,103360.0,0.1534542]
[1762876014529,0.29014454,103370.0,103360.0,0.15418687]
[1762876014826,0.00014454,103370.0,103360.0,0.39606687]
[1762876015023,0.28586943,103390.0,103380.0,0.1534355]
[1762876015223,0.71656781,103390.0,103380.0,0.43346267]
[1762876015732,0.71656781,103390.0,103380.0,0.53020817]
[1762876015733,0.31230218,103390.0,103380.0,0.53020817]
[1762876015934,0.18230218,103390.0,103380.0,0.53020817]
[1762876016429,0.46817161,103390.0,103380.0,0.53016817]
[1762876017031,0.46817161,103390.0,103380.0,0.43342267]
[1762876017422,0.47900161,103390.0,103380.0,0.43342267]
[1762876017728,0.47900161,103390.0,103380.0,0.43442267]
[1762876018130,0.48983161,103390.0,103380.0,0.43442267]
[1762876018718,0.48983161,103390.0,103380.0,0.05842267]
[1762876018933,0.48983161,103390.0,103380.0,0.43422267]
[1762876019432,0.58656781,103390.0,103380.0,0.43422267]
[1762876019731,0.58656781,103390.0,103380.0,0.43414267]
[1762876020632,0.58656781,103390.0,103380.0,0.00173267]
[1762876020830,0.58656781,103390.0,103380.0,0.001]
[1762876021030,0.1184055,103380.0,103370.0,0.37598454]
[1762876021232,0.7365511,103380.0,103370.0,0.37671721]
[1762876021426,0.88098657,103380.0,103370.0,0.00087721]
[1762876021829,0.7365511,103380.0,103370.0,0.02187721]
[1762876022228,0.7405511,103380.0,103370.0,0.00087721]
[1762876022833,0.6438056,103380.0,103370.0,0.04428721]
[1762876023231,0.6438056,103380.0,103370.0,0.14104211]
[1762876023432,0.33627617,103380.0,103370.0,0.14104211]
[1762876023626,0.34027617,103380.0,103370.0,0.14104211]
[1762876024124,0.6261456,103380.0,103370.0,0.14104211]
[1762876024537,0.00807814,103380.0,103370.0,0.14104211]
[1762876025138,0.00807814,103380.0,103370.0,0.51684211]
[1762876025637,0.00807814,103380.0,103370.0,0.75868211]
[1762876026231,0.28601397,103400.0,103390.0,0.0967362]
[1762876026437,0.597872,103400.0,103390.0,0.51659887]
[1762876026637,0.29234257,103400.0,103390.0,0.51659887]
[1762876026937,0.597872,103400.0,103390.0,0.41986267]
[1762876027238,0.59794062,103400.0,103390.0,0.41986267]
[1762876027631,0.69466742,103400.0,103390.0,0.04414267]
[1762876027824,0.69466742,103400.0,103390.0,0.41990267]
[1762876028030,0.69566742,103400.0,103390.0,0.41990267]
[1762876028538,0.69666742,103400.0,103390.0,0.42390267]
[1762876028736,0.69666742,103400.0,103390.0,0.42386267]
[1762876029328,0.0102,103380.0,103370.0,0.00014454]
[1762876029527,0.6232568,103380.0,103370.0,0.04341]
[1762876029733,0.33008934,103380.0,103370.0,0.5164449]
[1762876029928,0.10397604,103400.0,103390.0,0.04341]
[1762876030127,0.7220435,103400.0,103390.0,0.41993]
[1762876030328,0.630412,103400.0,103390.0,0.41993]
[1762876030626,0.629412,103400.0,103390.0,0.04341]
[1762876030834,0.629412,103400.0,103390.0,0.41997]
[1762876031027,0.0102,103390.0,103380.0,0.05621]
[1762876031234,0.63826746,103390.0,103380.0,0.5294755]
[1762876031439,0.63826746,103390.0,103380.0,0.05621]
[1762876031639,0.63826746,103390.0,103380.0,0.43269]
[1762876032137,0.63826746,103390.0,103380.0,0.43369]
[1762876032538,0.0082,103360.0,103350.0,0.00033397]
[1762876032836,0.59626746,103360.0,103350.0,0.00033397]
[1762876033041,0.61653525,103360.0,103350.0,0.04374397]
[1762876033425,0.61653536,103360.0,103350.0,0.04374397]
[1762876033628,0.59626746,103360.0,103350.0,0.04374397]
[1762876034035,0.69303176,103360.0,103350.0,0.04374397]
[1762876034539,0.69503176,103360.0,103350.0,0.04374397]
[1762876034739,0.71530738,103360.0,103350.0,0.04374397]
[1762876034940,0.71630738,103360.0,103350.0,0.04874397]
[1762876035141,0.71430738,103360.0,103350.0,0.04874397]
[1762876035338,0.71530738,103360.0,103350.0,0.04874397]
[1762876035837,0.00999999,103330.0,103310.0,0.00682096]
[1762876036037,0.28586943,103320.0,103310.0,0.12318096]
[1762876036236,0.02027546,103320.0,103310.0,0.38900206]
[1762876036542,0.00014454,103330.0,103320.0,0.1530117]
[1762876036735,0.00023663,103330.0,103320.0,0.3949717]
[1762876037127,0.00023663,103330.0,103320.0,0.1530117]
[1762876037330,0.00023663,103330.0,103320.0,0.3949717]
[1762876037529,0.0987646,103360.0,103340.0,0.1095793]
[1762876037530,0.0987643,103360.0,103340.0,0.1095793]
[1762876037735,0.57906746,103360.0,103350.0,0.5270636]
[1762876037935,0.001,103360.0,103350.0,0.7689436]
[1762876038127,0.3568941,103400.0,103370.0,0.04341]
[1762876038128,0.28586943,103380.0,103370.0,0.04341]
[1762876038328,0.61806746,103380.0,103370.0,0.04341]
[1762876038538,0.61806746,103380.0,103370.0,0.43049]
[1762876038740,0.61806746,103380.0,103370.0,0.04341]
[1762876038935,0.61806746,103380.0,103360.0,0.05635454]
[1762876039135,0.33219803,103380.0,103370.0,0.20208]
[1762876039636,0.33219803,103380.0,103360.0,0.03483454]
[1762876039842,0.47820802,103380.0,103360.0,0.05659454]
[1762876040138,0.28586943,103370.0,103360.0,0.15335864]
[1762876040335,0.47806746,103370.0,103360.0,0.15335864]
[1762876040734,0.47806746,103370.0,103360.0,0.05659454]
[1762876041135,0.57482236,103370.0,103360.0,0.05659454]
[1762876041533,0.57582236,103370.0,103360.0,0.05759454]
[1762876042034,0.57682236,103370.0,103360.0,0.05759454]
[1762876042435,0.57682236,103370.0,103360.0,0.15435884]
[1762876042436,0.48006746,103370.0,103360.0,0.15435884]
[1762876043140,0.48006746,103370.0,103360.0,0.05759454]
[1762876043541,0.48006746,103370.0,103360.0,0.00114454]
[1762876043852,0.62578783,103370.0,103340.0,0.05645]
[1762876044040,0.28586943,103350.0,103340.0,0.05645]
[1762876044236,0.61806746,103350.0,103340.0,0.05645]
[1762876044450,0.61806746,103350.0,103340.0,0.44345]
[1762876045144,0.61806746,103350.0,103340.0,0.44337]
[1762876045442,0.33219803,103350.0,103340.0,0.44337]
[1762876045644,0.28601397,103360.0,103350.0,0.04365]
[1762876045844,0.608212,103360.0,103350.0,0.04365]
[1762876046145,0.0967736,103350.0,103340.0,0.05645]
[1762876046444,0.70484106,103350.0,103340.0,0.03469]
[1762876046642,0.70484106,103350.0,103330.0,0.02189]
[1762876046643,0.0967899,103340.0,103330.0,0.02189]
[1762876046847,0.68485736,103340.0,103320.0,0.05645]
[1762876047052,0.28586943,103330.0,103320.0,0.44405]
[1762876047251,0.28586943,103330.0,103320.0,0.5408517]
[1762876047252,0.28806746,103330.0,103320.0,0.5408517]
[1762876047435,0.28586943,103330.0,103320.0,0.5408517]
[1762876047639,0.28586943,103330.0,103320.0,0.5415317]
[1762876048248,0.54806746,103330.0,103320.0,0.5415317]
[1762876048444,0.28806746,103330.0,103320.0,0.5415317]
[1762876048644,0.56806746,103330.0,103320.0,0.44473]
[1762876048946,0.57106746,103330.0,103320.0,0.05645]
[1762876049145,0.57406746,103330.0,103320.0,0.44473]
[1762876049346,0.98232034,103330.0,103310.0,0.00312986]
[1762876049553,0.28586943,103320.0,103310.0,0.04677986]
[1762876049845,0.68486916,103320.0,103310.0,0.04677986]
[1762876050544,0.68486916,103320.0,103310.0,0.02501986]
[1762876050741,0.7050727,103320.0,103280.0,0.1097946]
[1762876050941,0.28586943,103290.0,103280.0,0.1534446]
[1762876051136,0.28586943,103290.0,103280.0,1.6534446]
[1762876051340,0.28586943,103300.0,103290.0,0.04365]
[1762876051541,0.28806746,103300.0,103290.0,0.1404798]
[1762876051941,0.69488796,103300.0,103290.0,0.02189]
[1762876052144,0.59806746,103300.0,103270.0,0.00036064]
[1762876052344,0.28586943,103280.0,103270.0,0.04401064]
[1762876052649,0.53806746,103280.0,103270.0,1.54401064]
[1762876052844,0.64099803,103280.0,103270.0,0.00036064]
[1762876053050,0.53806746,103280.0,103270.0,0.00036064]
[1762876053250,0.30806746,103280.0,103270.0,0.04401064]
[1762876053450,0.94778746,103280.0,103270.0,0.04401064]
[1762876053641,0.55806746,103280.0,103270.0,0.04401064]
[1762876053842,0.67782746,103280.0,103270.0,0.04401064]
[1762876054043,0.98782746,103280.0,103270.0,0.04401064]
[1762876054245,0.98982746,103280.0,103270.0,0.04401064]
[1762876054752,0.98982746,103280.0,103270.0,0.00036064]
[1762876055253,0.60006746,103280.0,103270.0,0.00036064]
[1762876055549,0.98966746,103280.0,103270.0,0.00036064]
[1762876055953,0.98954746,103280.0,103270.0,0.04401064]
[1762876056152,0.29006746,103280.0,103270.0,0.04401064]
[1762876056352,0.96446746,103280.0,103270.0,0.04401064]
[1762876056647,0.67958746,103280.0,103270.0,0.28609064]
[1762876056850,0.67958746,103280.0,103270.0,0.04401064]
[1762876056851,0.59006746,103280.0,103270.0,0.04401064]
[1762876057153,0.69367803,103280.0,103270.0,0.00036064]
[1762876057355,0.97954746,103280.0,103270.0,0.00036064]
[1762876057555,0.98154746,103280.0,103270.0,0.00036064]
[1762876058655,0.00828066,103250.0,103240.0,0.05661]
[1762876058955,0.39995869,103250.0,103240.0,0.05661]
[1762876059155,0.82578812,103250.0,103240.0,0.1534867]
[1762876059350,0.29634812,103250.0,103240.0,0.1534867]
[1762876059552,0.29643482,103250.0,103240.0,0.1534867]
[1762876059746,0.70511482,103250.0,103240.0,0.1534867]
[1762876059948,0.68511482,103250.0,103240.0,0.1534867]
[1762876060146,0.70511482,103250.0,103240.0,0.1534867]
[1762876060354,0.29643482,103250.0,103240.0,0.1534867]
[1762876060541,0.68563482,103250.0,103240.0,0.1534867]
[1762876061045,0.59640895,103250.0,103240.0,0.1534867]
[1762876061550,0.59664895,103250.0,103240.0,0.1534867]
[1762876061945,0.20401092,103250.0,103240.0,0.3956467]
[1762876062347,0.20401092,103250.0,103240.0,0.1534867]
[1762876062554,0.00836736,103250.0,103240.0,0.1534867]
[1762876062854,0.486769,103270.0,103260.0,0.153468]
[1762876063152,0.61896703,103270.0,103260.0,0.153468]
[1762876063350,0.97461059,103270.0,103260.0,0.153468]
[1762876064146,0.41669059,103270.0,103260.0,0.153468]
[1762876064350,0.41869059,103270.0,103260.0,0.153468]
[1762876064554,0.49284703,103270.0,103260.0,0.153468]
[1762876064751,0.20184159,103270.0,103260.0,0.153468]
[1762876065057,0.58869019,103270.0,103260.0,0.395548]
[1762876065359,0.58869019,103270.0,103260.0,0.153468]
[1762876065662,0.20184159,103270.0,103260.0,0.153468]
[1762876065961,0.41869019,103270.0,103260.0,0.153468]
[1762876066149,0.57869019,103270.0,103260.0,0.153468]
[1762876066756,0.48184159,103270.0,103260.0,0.153468]
[1762876066950,0.19564356,103260.0,103250.0,0.67513]
[1762876067151,0.19784159,103260.0,103250.0,0.7719961]
[1762876067457,0.004,103270.0,103260.0,0.153468]
[1762876067764,0.1067541,103300.0,103290.0,0.04365]
[1762876067765,0.1698,103300.0,103290.0,0.04365]
[1762876067951,0.50199803,103300.0,103290.0,0.04365]
[1762876068847,0.79446199,103300.0,103290.0,0.04365]
[1762876069448,0.24319159,103300.0,103290.0,0.1404798]
[1762876069752,0.00219803,103300.0,103290.0,0.1404798]
[1762876069950,0.19784159,103300.0,103290.0,0.1404798]
[1762876070358,0.24112159,103300.0,103290.0,0.1404798]
[1762876071056,0.19784159,103300.0,103290.0,0.1404798]
[1762876071462,0.19784159,103300.0,103290.0,0.3825198]
[1762876071664,0.00219803,103300.0,103290.0,0.1404798]
[1762876071962,0.19784159,103300.0,103290.0,0.1404798]
[1762876072260,0.00219803,103300.0,103290.0,0.1404798]
[1762876072762,0.00219803,103300.0,103290.0,0.7711998]
[1762876073164,0.00037756,103310.0,103300.0,0.1556305]
[1762876073662,0.00037756,103310.0,103300.0,0.3976305]
[1762876074050,0.00037756,103310.0,103300.0,0.1556305]
[1762876074265,0.23892356,103330.0,103320.0,0.1556044]
[1762876074559,0.24112159,103330.0,103320.0,0.1556044]
[1762876074960,0.00219803,103330.0,103320.0,0.1556044]
[1762876075258,0.19564356,103330.0,103320.0,0.1556044]
[1762876075659,0.19578882,103340.0,103330.0,0.1421323]
[1762876075861,0.33798685,103340.0,103330.0,0.04534]
[1762876076063,0.21970685,103340.0,103330.0,0.1421323]
[1762876076366,0.24126685,103340.0,103330.0,0.1421323]
[1762876076858,0.52126685,103340.0,103330.0,0.1421323]
[1762876077364,0.52126685,103340.0,103330.0,0.04534]
[1762876077664,0.52226685,103340.0,103330.0,0.04934]
[1762876077968,0.52226685,103340.0,103330.0,0.1461323]
[1762876078665,0.04417,103330.0,103320.0,0.153065]
[1762876078865,0.54201159,103330.0,103320.0,0.153065]
[1762876079059,0.24201159,103330.0,103320.0,0.153065]
[1762876079962,0.05733,103320.0,103310.0,0.04294526]
[1762876080266,0.04785526,103340.0,103330.0,0.0967923]
[1762876080464,0.02216,103330.0,103320.0,0.1522576]
[1762876080660,0.35201159,103330.0,103320.0,0.5397776]
[1762876080860,0.24301159,103330.0,103320.0,0.0448]
[1762876081061,0.00319803,103330.0,103320.0,0.1542617]
[1762876081263,0.001,103330.0,103320.0,0.1542617]
[1762876081866,0.23995882,103340.0,103330.0,0.1395923]
[1762876082066,0.26215685,103340.0,103330.0,0.1395923]
[1762876082263,0.24215685,103340.0,103330.0,0.1395923]
[1762876082868,0.26215685,103340.0,103330.0,0.1395923]
[1762876083566,0.26215685,103340.0,103330.0,0.1405923]
[1762876083960,0.24215685,103340.0,103330.0,0.1405923]
[1762876084155,0.26215685,103340.0,103330.0,0.1405923]
[1762876084857,0.57215685,103340.0,103330.0,0.1405923]
[1762876085058,0.67356985,103340.0,103330.0,0.1415923]
[1762876085264,0.67356985,103340.0,103330.0,0.0987923]
[1762876085862,0.67356985,103340.0,103330.0,0.002]
[1762876086062,1.06132985,103340.0,103330.0,0.002]
[1762876086262,0.05533,103320.0,103310.0,0.09694996]
[1762876086460,0.27317159,103320.0,103310.0,0.09694996]
[1762876086663,0.25317159,103320.0,103310.0,0.11810996]
[1762876087058,0.59317159,103320.0,103310.0,0.11810996]
[1762876087766,0.78981515,103320.0,103310.0,0.00314526]
[1762876088463,0.24201159,103320.0,103310.0,0.14075636]
[1762876088666,0.26201159,103320.0,103310.0,0.14175636]